[Event "Titled Tuesday Blitz September 20 Late 2022"]
[White "Rustemov, Alexander"]
[Black "Martinez Alcantara, Jose Eduardo"]
[WhiteFideId "4119002"]
[BlackFideId "3805662"]
[WhiteElo "2848"]
[BlackElo "2703"]
[Result "0-1"]
[Round "07"]
[TimeControl "180+1"]
[Date "2022.09.20"]
[WhiteClock "0:00:02"]
[BlackClock "0:00:20"]

1. d4 {[%clk 0:03:00]}  d5 {[%clk 0:02:53]} 2. c4 {[%clk 0:03:01]}  e6 {[%clk 0:02:54]} 3. Nc3 {[%clk 0:03:01]}  a6 {[%clk 0:02:54]} 4. cxd5 {[%clk 0:03:01]}  exd5 {[%clk 0:02:55]} 5. Nf3 {[%clk 0:03:02]}  Nf6 {[%clk 0:02:52]} 6. Bg5 {[%clk 0:03:02]}  Be6 {[%clk 0:02:52]} 7. e3 {[%clk 0:03:02]}  Nbd7 {[%clk 0:02:53]} 8. Bd3 {[%clk 0:03:02]}  Bd6 {[%clk 0:02:52]} 9. Qc2 {[%clk 0:03:02]}  c6 {[%clk 0:02:52]} 10. Bf4 {[%clk 0:03:02]}  Qc7 {[%clk 0:02:51]} 11. Bxd6 {[%clk 0:03:03]}  Qxd6 {[%clk 0:02:52]} 12. h3 {[%clk 0:03:04]}  O-O {[%clk 0:02:52]} 13. O-O {[%clk 0:03:04]}  h6 {[%clk 0:02:51]} 14. Rfc1 {[%clk 0:03:04]}  Rfe8 {[%clk 0:02:51]} 15. Na4 {[%clk 0:03:05]}  Qe7 {[%clk 0:02:47]} 16. Nc5 {[%clk 0:02:58]}  Nxc5 {[%clk 0:02:47]} 17. dxc5 {[%clk 0:02:58]}  Nd7 {[%clk 0:02:44]} 18. b4 {[%clk 0:02:54]}  Nf8 {[%clk 0:02:41]} 19. Nd4 {[%clk 0:02:51]}  Bd7 {[%clk 0:02:42]} 20. Qc3 {[%clk 0:02:48]}  Qg5 {[%clk 0:02:36]} 21. Kh2 {[%clk 0:02:43]}  Qf6 {[%clk 0:02:29]} 22. Kg1 {[%clk 0:02:36]}  Qg5 {[%clk 0:02:29]} 23. Kh2 {[%clk 0:02:32]}  Qe7 {[%clk 0:02:29]} 24. a4 {[%clk 0:02:29]}  Qf6 {[%clk 0:02:25]} 25. Kg1 {[%clk 0:02:28]}  Qg5 {[%clk 0:02:23]} 26. Kh2 {[%clk 0:02:23]}  Qe5+ {[%clk 0:02:23]} 27. Kg1 {[%clk 0:02:14]}  Qg5 {[%clk 0:02:17]} 28. Kh2 {[%clk 0:02:14]}  Ne6 {[%clk 0:02:06]} 29. Nf3 {[%clk 0:02:04]}  Qe7 {[%clk 0:02:06]} 30. Qe5 {[%clk 0:01:49]}  Rac8 {[%clk 0:01:51]} 31. Nd4 {[%clk 0:01:47]}  Nxd4 {[%clk 0:01:46]} 32. Qxe7 {[%clk 0:01:42]}  Rxe7 {[%clk 0:01:42]} 33. exd4 {[%clk 0:01:41]}  g6 {[%clk 0:01:40]} 34. Re1 {[%clk 0:01:36]}  Kf8 {[%clk 0:01:38]} 35. Rxe7 {[%clk 0:01:35]}  Kxe7 {[%clk 0:01:39]} 36. Re1+ {[%clk 0:01:34]}  Kf6 {[%clk 0:01:40]} 37. Kg3 {[%clk 0:01:30]}  Ra8 {[%clk 0:01:36]} 38. a5 {[%clk 0:01:14]}  g5 {[%clk 0:01:35]} 39. f3 {[%clk 0:01:09]}  h5 {[%clk 0:01:32]} 40. h4 {[%clk 0:01:07]}  Rg8 {[%clk 0:01:31]} 41. hxg5+ {[%clk 0:01:06]}  Rxg5+ {[%clk 0:01:32]} 42. Kf2 {[%clk 0:01:06]}  Rg8 {[%clk 0:01:29]} 43. Rh1 {[%clk 0:01:04]}  Kg5 {[%clk 0:01:22]} 44. g3 {[%clk 0:01:03]}  Rh8 {[%clk 0:01:22]} 45. f4+ {[%clk 0:01:00]}  Kf6 {[%clk 0:01:22]} 46. Be2 {[%clk 0:00:59]}  Re8 {[%clk 0:01:17]} 47. Bf3 {[%clk 0:00:55]}  Bg4 {[%clk 0:01:15]} 48. Bxg4 {[%clk 0:00:52]}  hxg4 {[%clk 0:01:15]} 49. Rh6+ {[%clk 0:00:51]}  Kf5 {[%clk 0:00:56]} 50. Rd6 {[%clk 0:00:47]}  Ke4 {[%clk 0:00:42]} 51. Rd7 {[%clk 0:00:45]}  Kxd4 {[%clk 0:00:42]} 52. Rxb7 {[%clk 0:00:32]}  Kc3 {[%clk 0:00:42]} 53. Rb6 {[%clk 0:00:32]}  d4 {[%clk 0:00:35]} 54. Rxc6 {[%clk 0:00:32]}  d3 {[%clk 0:00:36]} 55. Rxa6 {[%clk 0:00:32]}  Rd8 {[%clk 0:00:31]} 56. Rh6 {[%clk 0:00:29]}  Kxb4 {[%clk 0:00:26]} 57. Rh1 {[%clk 0:00:21]}  d2 {[%clk 0:00:24]} 58. Ke2 {[%clk 0:00:20]}  Kc3 {[%clk 0:00:23]} 59. c6 {[%clk 0:00:11]}  Re8+ {[%clk 0:00:20]} 60. Kf2 {[%clk 0:00:11]}  Rc8 {[%clk 0:00:18]} 61. Ke2 {[%clk 0:00:05]}  Rxc6 {[%clk 0:00:19]} 62. Ra1 {[%clk 0:00:03]}  Re6+ {[%clk 0:00:19]} 63. Kf2 {[%clk 0:00:02]}  Kb2 {[%clk 0:00:20]} 0-1


[Site "https://www.chess.com"]

[Event "Titled Tuesday Blitz September 20 Late 2022"]
[White "Sargsyan, Anna M."]
[Black "Hansen, Eric"]
[WhiteFideId "13308130"]
[BlackFideId "2606771"]
[WhiteElo "2271"]
[BlackElo "2568"]
[Result "0-1"]
[Round "07"]
[TimeControl "180+1"]
[Date "2022.09.20"]
[WhiteClock "0:00:10"]
[BlackClock "0:00:39"]

1. d4 {[%clk 0:02:59]}  Nf6 {[%clk 0:02:48]} 2. c4 {[%clk 0:02:59]}  e6 {[%clk 0:02:40]} 3. Nf3 {[%clk 0:02:59]}  Bb4+ {[%clk 0:02:38]} 4. Bd2 {[%clk 0:02:59]}  Be7 {[%clk 0:02:37]} 5. g3 {[%clk 0:02:59]}  d5 {[%clk 0:02:37]} 6. Bg2 {[%clk 0:02:56]}  O-O {[%clk 0:02:38]} 7. O-O {[%clk 0:02:55]}  Nbd7 {[%clk 0:02:38]} 8. b3 {[%clk 0:02:53]}  Ne4 {[%clk 0:02:34]} 9. Bc1 {[%clk 0:02:48]}  a5 {[%clk 0:02:31]} 10. Bb2 {[%clk 0:02:44]}  a4 {[%clk 0:02:31]} 11. cxd5 {[%clk 0:02:22]}  exd5 {[%clk 0:02:30]} 12. bxa4 {[%clk 0:02:19]}  Nb6 {[%clk 0:02:29]} 13. Nc3 {[%clk 0:02:18]}  Nc4 {[%clk 0:02:28]} 14. Qc1 {[%clk 0:02:14]}  Nxb2 {[%clk 0:02:27]} 15. Qxb2 {[%clk 0:02:14]}  Nxc3 {[%clk 0:02:27]} 16. Qxc3 {[%clk 0:02:15]}  Rxa4 {[%clk 0:02:27]} 17. Ne5 {[%clk 0:02:08]}  c6 {[%clk 0:02:27]} 18. Nd3 {[%clk 0:02:09]}  Ra3 {[%clk 0:02:24]} 19. Qb2 {[%clk 0:02:04]}  Qa5 {[%clk 0:02:24]} 20. Rfc1 {[%clk 0:01:59]}  Bf6 {[%clk 0:02:22]} 21. Nc5 {[%clk 0:01:55]}  Qa7 {[%clk 0:02:13]} 22. e3 {[%clk 0:01:54]}  h5 {[%clk 0:02:12]} 23. h4 {[%clk 0:01:48]}  g6 {[%clk 0:02:11]} 24. Bf1 {[%clk 0:01:48]}  Kg7 {[%clk 0:02:11]} 25. Rc3 {[%clk 0:01:39]}  Rxc3 {[%clk 0:02:07]} 26. Qxc3 {[%clk 0:01:40]}  b6 {[%clk 0:02:07]} 27. Nb3 {[%clk 0:01:39]}  c5 {[%clk 0:02:08]} 28. a4 {[%clk 0:01:34]}  Bd7 {[%clk 0:02:05]} 29. a5 {[%clk 0:01:24]}  c4 {[%clk 0:02:05]} 30. axb6 {[%clk 0:01:22]}  Qxb6 {[%clk 0:02:05]} 31. Nd2 {[%clk 0:01:20]}  Rb8 {[%clk 0:02:03]} 32. Bg2 {[%clk 0:01:19]}  Qb2 {[%clk 0:01:55]} 33. Qxb2 {[%clk 0:00:34]}  Rxb2 {[%clk 0:01:54]} 34. Bxd5 {[%clk 0:00:34]}  Rxd2 {[%clk 0:01:42]} 35. Bxc4 {[%clk 0:00:34]}  Rc2 {[%clk 0:01:36]} 36. Bd5 {[%clk 0:00:33]}  Rc7 {[%clk 0:01:20]} 37. Rb1 {[%clk 0:00:30]}  Bc8 {[%clk 0:01:20]} 38. Rb6 {[%clk 0:00:29]}  Be7 {[%clk 0:01:19]} 39. Kg2 {[%clk 0:00:28]}  Bd8 {[%clk 0:01:09]} 40. Rb8 {[%clk 0:00:24]}  Rc2 {[%clk 0:01:03]} 41. Be4 {[%clk 0:00:20]}  Rc3 {[%clk 0:01:01]} 42. Bf3 {[%clk 0:00:20]}  Ba5 {[%clk 0:01:01]} 43. d5 {[%clk 0:00:19]}  Bf5 {[%clk 0:00:53]} 44. Rb5 {[%clk 0:00:18]}  Bc7 {[%clk 0:00:51]} 45. e4 {[%clk 0:00:17]}  Bd7 {[%clk 0:00:49]} 46. Rb7 {[%clk 0:00:17]}  Bc8 {[%clk 0:00:49]} 47. Ra7 {[%clk 0:00:16]}  Be5 {[%clk 0:00:46]} 48. Be2 {[%clk 0:00:14]}  Rc2 {[%clk 0:00:45]} 49. Kf1 {[%clk 0:00:13]}  Bh3+ {[%clk 0:00:43]} 50. Ke1 {[%clk 0:00:11]}  Bc3+ {[%clk 0:00:43]} 51. Kd1 {[%clk 0:00:11]}  Rd2+ {[%clk 0:00:44]} 52. Kc1 {[%clk 0:00:10]}  Rxe2 {[%clk 0:00:44]} 53. Rc7 {[%clk 0:00:10]}  Be5 {[%clk 0:00:42]} 54. Re7 {[%clk 0:00:10]}  Kf6 {[%clk 0:00:39]} 0-1


[Site "https://www.chess.com"]

[Event "Titled Tuesday Blitz September 20 Late 2022"]
[White "Stoyanov, Tsvetan"]
[Black "Iliaguev, Nisim"]
[WhiteFideId "2917173"]
[BlackFideId "2817276"]
[WhiteElo "2283"]
[BlackElo "2107"]
[Result "0-1"]
[Round "07"]
[TimeControl "180+1"]
[Date "2022.09.20"]
[WhiteClock "0:00:01"]
[BlackClock "0:00:33"]

1. e4 {[%clk 0:03:00]}  c6 {[%clk 0:02:59]} 2. d4 {[%clk 0:03:00]}  d5 {[%clk 0:03:00]} 3. Nc3 {[%clk 0:03:00]}  dxe4 {[%clk 0:03:00]} 4. Nxe4 {[%clk 0:03:01]}  Nf6 {[%clk 0:03:01]} 5. Nxf6+ {[%clk 0:03:02]}  exf6 {[%clk 0:03:02]} 6. c3 {[%clk 0:03:02]}  Bd6 {[%clk 0:03:02]} 7. Bd3 {[%clk 0:03:03]}  O-O {[%clk 0:03:03]} 8. Qc2 {[%clk 0:03:03]}  Re8+ {[%clk 0:03:04]} 9. Ne2 {[%clk 0:03:04]}  h6 {[%clk 0:03:04]} 10. Be3 {[%clk 0:03:04]}  Bg4 {[%clk 0:03:03]} 11. h3 {[%clk 0:02:56]}  Bxe2 {[%clk 0:03:03]} 12. Bxe2 {[%clk 0:02:55]}  Nd7 {[%clk 0:03:03]} 13. O-O-O {[%clk 0:02:50]}  Qc7 {[%clk 0:03:04]} 14. Qd2 {[%clk 0:02:40]}  Nf8 {[%clk 0:03:02]} 15. Bd3 {[%clk 0:02:35]}  Rad8 {[%clk 0:03:01]} 16. g4 {[%clk 0:02:30]}  c5 {[%clk 0:02:58]} 17. d5 {[%clk 0:02:23]}  c4 {[%clk 0:02:53]} 18. Bb1 {[%clk 0:02:19]}  b5 {[%clk 0:02:51]} 19. h4 {[%clk 0:02:03]}  b4 {[%clk 0:02:50]} 20. cxb4 {[%clk 0:01:52]}  Be5 {[%clk 0:02:50]} 21. g5 {[%clk 0:01:44]}  c3 {[%clk 0:02:46]} 22. bxc3 {[%clk 0:01:43]}  Bxc3 {[%clk 0:01:59]} 23. Qc2 {[%clk 0:01:42]}  Qe5 {[%clk 0:01:58]} 24. Rd3 {[%clk 0:00:56]}  Bxb4 {[%clk 0:01:54]} 25. Qb3 {[%clk 0:00:48]}  Rb8 {[%clk 0:01:38]} 26. Qa4 {[%clk 0:00:30]}  Rec8+ {[%clk 0:01:31]} 27. Kd1 {[%clk 0:00:28]}  Bc5 {[%clk 0:01:28]} 28. Ke2 {[%clk 0:00:06]}  Bxe3 {[%clk 0:01:19]} 29. Rxe3 {[%clk 0:00:05]}  Rb2+ {[%clk 0:01:17]} 30. Kf3 {[%clk 0:00:06]}  Qxd5+ {[%clk 0:01:12]} 31. Be4 {[%clk 0:00:06]}  Qd2 {[%clk 0:01:10]} 32. Rf1 {[%clk 0:00:07]}  fxg5 {[%clk 0:01:02]} 33. hxg5 {[%clk 0:00:07]}  h5 {[%clk 0:00:51]} 34. g6 {[%clk 0:00:07]}  Nxg6 {[%clk 0:00:46]} 35. Bxg6 {[%clk 0:00:07]}  fxg6 {[%clk 0:00:45]} 36. Qe4 {[%clk 0:00:03]}  Rf8+ {[%clk 0:00:43]} 37. Kg3 {[%clk 0:00:04]}  Rxf2 {[%clk 0:00:36]} 38. Qe6+ {[%clk 0:00:01]}  Kh7 {[%clk 0:00:33]} 0-1


[Site "https://www.chess.com"]

[Event "Titled Tuesday Blitz September 20 Late 2022"]
[White "Tari, Aryan"]
[Black "Melikyan, Gnel"]
[WhiteFideId "1510045"]
[BlackFideId "54109990"]
[WhiteElo "2612"]
[BlackElo "1772"]
[Result "0-1"]
[Round "07"]
[TimeControl "180+1"]
[Date "2022.09.20"]
[WhiteClock "0:00:04"]
[BlackClock "0:00:27"]

1. c4 {[%clk 0:03:00]}  Nf6 {[%clk 0:02:58]} 2. Nc3 {[%clk 0:03:00]}  e6 {[%clk 0:02:57]} 3. Nf3 {[%clk 0:02:56]}  d5 {[%clk 0:02:48]} 4. e3 {[%clk 0:02:56]}  Be7 {[%clk 0:02:46]} 5. b3 {[%clk 0:02:50]}  O-O {[%clk 0:02:45]} 6. Bb2 {[%clk 0:02:51]}  b6 {[%clk 0:02:46]} 7. Rc1 {[%clk 0:02:49]}  Bb7 {[%clk 0:02:45]} 8. d4 {[%clk 0:02:47]}  Nbd7 {[%clk 0:02:37]} 9. Bd3 {[%clk 0:02:47]}  c5 {[%clk 0:02:34]} 10. O-O {[%clk 0:02:34]}  Rc8 {[%clk 0:02:26]} 11. Qe2 {[%clk 0:02:34]}  h6 {[%clk 0:02:17]} 12. cxd5 {[%clk 0:02:31]}  Nxd5 {[%clk 0:02:16]} 13. Nxd5 {[%clk 0:02:31]}  Bxd5 {[%clk 0:02:15]} 14. e4 {[%clk 0:02:32]}  Bb7 {[%clk 0:02:15]} 15. d5 {[%clk 0:02:25]}  exd5 {[%clk 0:02:05]} 16. exd5 {[%clk 0:02:26]}  Bf6 {[%clk 0:02:05]} 17. Rfd1 {[%clk 0:01:53]}  Re8 {[%clk 0:02:01]} 18. Qc2 {[%clk 0:01:50]}  Bxb2 {[%clk 0:01:55]} 19. Qxb2 {[%clk 0:01:51]}  Qf6 {[%clk 0:01:56]} 20. Qc2 {[%clk 0:01:45]}  Qd6 {[%clk 0:01:44]} 21. Bb5 {[%clk 0:01:12]}  Re7 {[%clk 0:01:41]} 22. Qf5 {[%clk 0:00:57]}  Rd8 {[%clk 0:01:38]} 23. Bc6 {[%clk 0:00:43]}  Bxc6 {[%clk 0:01:27]} 24. dxc6 {[%clk 0:00:44]}  Qxc6 {[%clk 0:01:28]} 25. Rd2 {[%clk 0:00:45]}  Rde8 {[%clk 0:01:22]} 26. h4 {[%clk 0:00:40]}  Ne5 {[%clk 0:01:18]} 27. Nh2 {[%clk 0:00:21]}  Qe6 {[%clk 0:01:04]} 28. Qf4 {[%clk 0:00:16]}  Rd7 {[%clk 0:00:50]} 29. Rxd7 {[%clk 0:00:15]}  Qxd7 {[%clk 0:00:39]} 30. Nf1 {[%clk 0:00:15]}  Qd4 {[%clk 0:00:35]} 31. Qg3 {[%clk 0:00:13]}  Qg4 {[%clk 0:00:26]} 32. Re1 {[%clk 0:00:12]}  Qxg3 {[%clk 0:00:26]} 33. fxg3 {[%clk 0:00:07]}  Nf3+ {[%clk 0:00:26]} 34. gxf3 {[%clk 0:00:01]}  Rxe1 {[%clk 0:00:27]} 35. Kg2 {[%clk 0:00:02]}  Re2+ {[%clk 0:00:27]} 36. Kh3 {[%clk 0:00:01]}  Rxa2 {[%clk 0:00:28]} 37. Ne3 {[%clk 0:00:02]}  Rb2 {[%clk 0:00:27]} 38. Nd5 {[%clk 0:00:03]}  Rxb3 {[%clk 0:00:27]} 39. h5 {[%clk 0:00:04]}  Rxf3 {[%clk 0:00:27]} 40. Kg4 {[%clk 0:00:04]}  Rf6 {[%clk 0:00:27]} 0-1


[Site "https://www.chess.com"]

[Event "Titled Tuesday Blitz September 20 Late 2022"]
[White "Zhigalko, Sergei"]
[Black "Rychagov, Andrey"]
[WhiteFideId "13502956"]
[BlackFideId "4119932"]
[WhiteElo "2662"]
[BlackElo "2431"]
[Result "1-0"]
[Round "07"]
[TimeControl "180+1"]
[Date "2022.09.20"]
[WhiteClock "0:01:11"]
[BlackClock "0:00:48"]

1. e4 {[%clk 0:03:00]}  e6 {[%clk 0:02:59]} 2. d4 {[%clk 0:03:00]}  d5 {[%clk 0:02:59]} 3. e5 {[%clk 0:03:01]}  c5 {[%clk 0:02:59]} 4. c3 {[%clk 0:03:01]}  Qb6 {[%clk 0:02:59]} 5. Nf3 {[%clk 0:03:01]}  Nc6 {[%clk 0:03:00]} 6. a3 {[%clk 0:03:02]}  Nh6 {[%clk 0:02:57]} 7. b4 {[%clk 0:03:02]}  cxd4 {[%clk 0:02:58]} 8. cxd4 {[%clk 0:03:03]}  Nf5 {[%clk 0:02:56]} 9. Be3 {[%clk 0:03:03]}  Be7 {[%clk 0:02:53]} 10. Bd3 {[%clk 0:03:03]}  Bd7 {[%clk 0:02:50]} 11. O-O {[%clk 0:03:03]}  Rc8 {[%clk 0:02:49]} 12. Qe1 {[%clk 0:03:02]}  Nxe3 {[%clk 0:02:25]} 13. fxe3 {[%clk 0:03:01]}  f6 {[%clk 0:02:25]} 14. exf6 {[%clk 0:02:43]}  Bxf6 {[%clk 0:02:24]} 15. Nc3 {[%clk 0:02:43]}  Nxd4 {[%clk 0:02:05]} 16. Nxd4 {[%clk 0:02:33]}  Bxd4 {[%clk 0:02:05]} 17. Nxd5 {[%clk 0:02:33]}  Qd6 {[%clk 0:01:45]} 18. exd4 {[%clk 0:02:18]}  Qxd5 {[%clk 0:01:45]} 19. Qe3 {[%clk 0:02:09]}  Bc6 {[%clk 0:01:39]} 20. Qg3 {[%clk 0:01:26]}  Qxd4+ {[%clk 0:01:10]} 21. Kh1 {[%clk 0:01:26]}  Rf8 {[%clk 0:01:09]} 22. Bxh7 {[%clk 0:01:23]}  Bd5 {[%clk 0:00:48]} 23. Rxf8+ {[%clk 0:01:10]}  Kxf8 {[%clk 0:00:48]} 24. Qd6+ {[%clk 0:01:11]} 1-0


[Site "https://www.chess.com"]

[Event "Titled Tuesday Blitz September 20 Late 2022"]
[White "Adewumi, Tanitoluwa"]
[Black "Leitao, Rafael"]
[WhiteFideId "30966396"]
[BlackFideId "2101246"]
[WhiteElo "2568"]
[BlackElo "2609"]
[Result "0-1"]
[Round "08"]
[TimeControl "180+1"]
[Date "2022.09.20"]
[WhiteClock "0:00:01"]
[BlackClock "0:00:40"]

1. Nf3 {[%clk 0:01:45]}  Nf6 {[%clk 0:02:54]} 2. b3 {[%clk 0:01:43]}  g6 {[%clk 0:02:53]} 3. Bb2 {[%clk 0:01:44]}  Bg7 {[%clk 0:02:54]} 4. e3 {[%clk 0:01:41]}  O-O {[%clk 0:02:53]} 5. c4 {[%clk 0:01:41]}  d6 {[%clk 0:02:53]} 6. d4 {[%clk 0:01:40]}  c5 {[%clk 0:02:53]} 7. dxc5 {[%clk 0:01:40]}  Qa5+ {[%clk 0:02:51]} 8. Nc3 {[%clk 0:01:39]}  Ne4 {[%clk 0:02:45]} 9. Rc1 {[%clk 0:01:38]}  Nxc3 {[%clk 0:02:09]} 10. Qd2 {[%clk 0:01:37]}  Qxa2 {[%clk 0:02:05]} 11. Bxc3 {[%clk 0:01:36]}  Qxd2+ {[%clk 0:02:01]} 12. Nxd2 {[%clk 0:01:31]}  dxc5 {[%clk 0:02:02]} 13. Bxg7 {[%clk 0:01:23]}  Kxg7 {[%clk 0:02:01]} 14. Ne4 {[%clk 0:01:23]}  Na6 {[%clk 0:02:00]} 15. g3 {[%clk 0:01:15]}  Rd8 {[%clk 0:01:43]} 16. Ke2 {[%clk 0:00:47]}  Bg4+ {[%clk 0:01:20]} 17. f3 {[%clk 0:00:44]}  Bf5 {[%clk 0:01:20]} 18. Nf2 {[%clk 0:00:33]}  Rd6 {[%clk 0:01:20]} 19. e4 {[%clk 0:00:29]}  Be6 {[%clk 0:01:18]} 20. e5 {[%clk 0:00:24]}  Rb6 {[%clk 0:01:16]} 21. Rc3 {[%clk 0:00:18]}  Rd8 {[%clk 0:01:14]} 22. Nd3 {[%clk 0:00:16]}  Bf5 {[%clk 0:01:03]} 23. Nf4 {[%clk 0:00:12]}  Nb4 {[%clk 0:01:02]} 24. g4 {[%clk 0:00:04]}  Be6 {[%clk 0:01:02]} 25. Nxe6+ {[%clk 0:00:04]}  fxe6 {[%clk 0:01:01]} 26. f4 {[%clk 0:00:05]}  Ra6 {[%clk 0:01:01]} 27. Ke3 {[%clk 0:00:05]}  Ra2 {[%clk 0:00:59]} 28. Be2 {[%clk 0:00:06]}  Nc2+ {[%clk 0:00:56]} 29. Ke4 {[%clk 0:00:04]}  Nd4 {[%clk 0:00:48]} 30. Bd3 {[%clk 0:00:03]}  Rf2 {[%clk 0:00:43]} 31. Rf1 {[%clk 0:00:02]}  Rxh2 {[%clk 0:00:40]} 32. f5 {[%clk 0:00:01]}  exf5+ {[%clk 0:00:40]} 0-1


[Site "https://www.chess.com"]

[Event "Titled Tuesday Blitz September 20 Late 2022"]
[White "Bortnyk, Olexandr"]
[Black "Jobava, Baadur"]
[WhiteFideId "14120828"]
[BlackFideId "13601520"]
[WhiteElo "2988"]
[BlackElo "2929"]
[Result "1/2-1/2"]
[Round "08"]
[TimeControl "180+1"]
[Date "2022.09.20"]
[WhiteClock "0:00:05"]
[BlackClock "0:00:12"]

1. e4 {[%clk 0:02:58]}  e6 {[%clk 0:02:55]} 2. d4 {[%clk 0:02:58]}  d5 {[%clk 0:02:55]} 3. Nc3 {[%clk 0:02:59]}  dxe4 {[%clk 0:02:56]} 4. Nxe4 {[%clk 0:02:59]}  Bd7 {[%clk 0:02:56]} 5. Nf3 {[%clk 0:02:58]}  Bc6 {[%clk 0:02:57]} 6. Bd3 {[%clk 0:02:59]}  Nd7 {[%clk 0:02:57]} 7. O-O {[%clk 0:03:00]}  Ngf6 {[%clk 0:02:57]} 8. Re1 {[%clk 0:03:00]}  Nxe4 {[%clk 0:02:57]} 9. Bxe4 {[%clk 0:03:01]}  Bxe4 {[%clk 0:02:57]} 10. Rxe4 {[%clk 0:03:02]}  Nf6 {[%clk 0:02:57]} 11. Rh4 {[%clk 0:03:02]}  Be7 {[%clk 0:02:52]} 12. c4 {[%clk 0:03:02]}  c5 {[%clk 0:02:39]} 13. Bg5 {[%clk 0:02:54]}  h6 {[%clk 0:02:24]} 14. Ne5 {[%clk 0:02:36]}  Qa5 {[%clk 0:01:22]} 15. b4 {[%clk 0:01:47]}  cxb4 {[%clk 0:01:19]} 16. Qf3 {[%clk 0:01:47]}  Qc7 {[%clk 0:01:07]} 17. Re1 {[%clk 0:01:46]}  Rf8 {[%clk 0:00:55]} 18. Bd2 {[%clk 0:00:52]}  O-O-O {[%clk 0:00:55]} 19. Rf4 {[%clk 0:00:33]}  Bd6 {[%clk 0:00:55]} 20. Be3 {[%clk 0:00:26]}  a5 {[%clk 0:00:52]} 21. h4 {[%clk 0:00:22]}  Nd7 {[%clk 0:00:44]} 22. Rxf7 {[%clk 0:00:15]}  Bxe5 {[%clk 0:00:42]} 23. dxe5 {[%clk 0:00:15]}  Qxe5 {[%clk 0:00:41]} 24. Rd1 {[%clk 0:00:09]}  Rxf7 {[%clk 0:00:28]} 25. Qxf7 {[%clk 0:00:10]}  Qf6 {[%clk 0:00:26]} 26. Qh5 {[%clk 0:00:09]}  Ne5 {[%clk 0:00:25]} 27. Bd4 {[%clk 0:00:03]}  Rxd4 {[%clk 0:00:21]} 28. Rxd4 {[%clk 0:00:02]}  Nf3+ {[%clk 0:00:22]} 29. gxf3 {[%clk 0:00:02]}  Qxd4 {[%clk 0:00:23]} 30. Qe8+ {[%clk 0:00:02]}  Kc7 {[%clk 0:00:23]} 31. Qxe6 {[%clk 0:00:03]}  Qxh4 {[%clk 0:00:15]} 32. Qe5+ {[%clk 0:00:03]}  Kc8 {[%clk 0:00:13]} 33. Qc5+ {[%clk 0:00:03]}  Kd7 {[%clk 0:00:13]} 34. Qd5+ {[%clk 0:00:04]}  Kc8 {[%clk 0:00:13]} 35. Qc5+ {[%clk 0:00:04]}  Kd7 {[%clk 0:00:11]} 36. Qd5+ {[%clk 0:00:05]}  Kc8 {[%clk 0:00:12]} 37. Qc5+ {[%clk 0:00:05]} 1/2-1/2


[Site "https://www.chess.com"]

[Event "Titled Tuesday Blitz September 20 Late 2022"]
[White "Donchenko, Alexander"]
[Black "Bok, Benjamin"]
[WhiteFideId "24603295"]
[BlackFideId "1017063"]
[WhiteElo "2572"]
[BlackElo "2658"]
[Result "1/2-1/2"]
[Round "08"]
[TimeControl "180+1"]
[Date "2022.09.20"]
[WhiteClock "0:00:29"]
[BlackClock "0:00:19"]

1. Nf3 {[%clk 0:02:57]}  d5 {[%clk 0:02:59]} 2. g3 {[%clk 0:02:56]}  g6 {[%clk 0:02:59]} 3. Bg2 {[%clk 0:02:56]}  Bg7 {[%clk 0:03:00]} 4. d4 {[%clk 0:02:56]}  Nf6 {[%clk 0:03:00]} 5. O-O {[%clk 0:02:57]}  O-O {[%clk 0:03:01]} 6. c4 {[%clk 0:02:57]}  c6 {[%clk 0:03:01]} 7. Qb3 {[%clk 0:02:54]}  Qb6 {[%clk 0:03:00]} 8. Nc3 {[%clk 0:02:54]}  Rd8 {[%clk 0:02:59]} 9. Rd1 {[%clk 0:02:52]}  Bf5 {[%clk 0:02:57]} 10. Qxb6 {[%clk 0:02:49]}  axb6 {[%clk 0:02:57]} 11. cxd5 {[%clk 0:02:50]}  Nxd5 {[%clk 0:02:47]} 12. Bg5 {[%clk 0:02:46]}  Nxc3 {[%clk 0:02:28]} 13. bxc3 {[%clk 0:02:47]}  b5 {[%clk 0:02:25]} 14. Nd2 {[%clk 0:02:11]}  f6 {[%clk 0:02:03]} 15. Bf4 {[%clk 0:02:09]}  Be6 {[%clk 0:02:02]} 16. Nb3 {[%clk 0:02:02]}  Nd7 {[%clk 0:02:00]} 17. d5 {[%clk 0:01:58]}  cxd5 {[%clk 0:01:43]} 18. Bxd5 {[%clk 0:01:59]}  Nc5 {[%clk 0:01:15]} 19. Nxc5 {[%clk 0:01:02]}  Bxd5 {[%clk 0:01:14]} 20. Bc7 {[%clk 0:01:02]}  Rdc8 {[%clk 0:01:14]} 21. Rxd5 {[%clk 0:01:02]}  Rxc7 {[%clk 0:01:14]} 22. Ne6 {[%clk 0:01:02]}  Rxc3 {[%clk 0:00:31]} 23. Rd7 {[%clk 0:00:59]}  Bf8 {[%clk 0:00:28]} 24. Rxb7 {[%clk 0:00:57]}  Rc2 {[%clk 0:00:25]} 25. e3 {[%clk 0:00:52]}  Kf7 {[%clk 0:00:25]} 26. Nd4 {[%clk 0:00:39]}  Rcxa2 {[%clk 0:00:25]} 27. Rxa2 {[%clk 0:00:39]}  Rxa2 {[%clk 0:00:26]} 28. Nxb5 {[%clk 0:00:39]}  Rd2 {[%clk 0:00:22]} 29. h4 {[%clk 0:00:38]}  f5 {[%clk 0:00:20]} 30. Nd4 {[%clk 0:00:37]}  Bg7 {[%clk 0:00:19]} 31. Nf3 {[%clk 0:00:36]}  Rd1+ {[%clk 0:00:20]} 32. Kg2 {[%clk 0:00:36]}  Bf6 {[%clk 0:00:21]} 33. Ng5+ {[%clk 0:00:31]}  Bxg5 {[%clk 0:00:21]} 34. hxg5 {[%clk 0:00:32]}  Ra1 {[%clk 0:00:19]} 35. Rb4 {[%clk 0:00:29]} 1/2-1/2


[Site "https://www.chess.com"]

[Event "Titled Tuesday Blitz September 20 Late 2022"]
[White "Girel, Joseph"]
[Black "Becerra, Juan David"]
[WhiteFideId "36033561"]
[BlackFideId "4404998"]
[WhiteElo "2104"]
[BlackElo "2278"]
[Result "1-0"]
[Round "08"]
[TimeControl "180+1"]
[Date "2022.09.20"]
[WhiteClock "0:01:49"]
[BlackClock "0:00:01"]

1. d4 {[%clk 0:03:00]}  d5 {[%clk 0:02:58]} 2. c4 {[%clk 0:03:01]}  e6 {[%clk 0:02:55]} 3. Nf3 {[%clk 0:03:00]}  c6 {[%clk 0:02:53]} 4. Nc3 {[%clk 0:02:59]}  Nf6 {[%clk 0:02:49]} 5. Bg5 {[%clk 0:02:57]}  h6 {[%clk 0:02:40]} 6. Bxf6 {[%clk 0:02:57]}  Qxf6 {[%clk 0:02:39]} 7. e3 {[%clk 0:02:57]}  Nd7 {[%clk 0:02:28]} 8. Be2 {[%clk 0:02:56]}  g6 {[%clk 0:02:27]} 9. O-O {[%clk 0:02:56]}  Bg7 {[%clk 0:02:28]} 10. e4 {[%clk 0:02:56]}  dxc4 {[%clk 0:02:16]} 11. e5 {[%clk 0:02:52]}  Qe7 {[%clk 0:02:13]} 12. Bxc4 {[%clk 0:02:52]}  O-O {[%clk 0:02:10]} 13. Qe2 {[%clk 0:02:52]}  b5 {[%clk 0:01:30]} 14. Bb3 {[%clk 0:02:50]}  a5 {[%clk 0:01:26]} 15. a4 {[%clk 0:02:48]}  Ba6 {[%clk 0:01:22]} 16. axb5 {[%clk 0:02:46]}  cxb5 {[%clk 0:01:18]} 17. Nxb5 {[%clk 0:02:42]}  Qb4 {[%clk 0:01:16]} 18. Bc4 {[%clk 0:02:35]}  Nb6 {[%clk 0:01:10]} 19. b3 {[%clk 0:02:30]}  a4 {[%clk 0:01:09]} 20. Nd6 {[%clk 0:02:28]}  Nxc4 {[%clk 0:00:35]} 21. bxc4 {[%clk 0:02:29]}  Rfb8 {[%clk 0:00:35]} 22. Qa2 {[%clk 0:02:23]}  Bf8 {[%clk 0:00:31]} 23. Rfb1 {[%clk 0:02:19]}  Qc3 {[%clk 0:00:25]} 24. c5 {[%clk 0:02:17]}  Rb3 {[%clk 0:00:20]} 25. Rc1 {[%clk 0:02:07]}  Qd3 {[%clk 0:00:08]} 26. Qxa4 {[%clk 0:02:06]}  Bb7 {[%clk 0:00:07]} 27. Qc4 {[%clk 0:01:47]}  Rxa1 {[%clk 0:00:06]} 28. Rxa1 {[%clk 0:01:48]}  Rb1+ {[%clk 0:00:05]} 29. Rxb1 {[%clk 0:01:48]}  Qxb1+ {[%clk 0:00:05]} 30. Qf1 {[%clk 0:01:48]}  Qxf1+ {[%clk 0:00:04]} 31. Kxf1 {[%clk 0:01:49]}  Bxf3 {[%clk 0:00:01]} 32. gxf3 {[%clk 0:01:49]} 1-0


[Site "https://www.chess.com"]